[Event "Sautron op 15th"]
[Site "Sautron"]
[Date "2015.10.24"]
[Round "7.9"]
[White "Lejarre, Ludovic"]
[Black "Navrotescu, Catalin"]
[Result "1/2-1/2"]
[ECO "B25"]
[WhiteElo "2342"]
[BlackElo "2366"]
[Annotator "RR"]
[PlyCount "49"]
[EventDate "2015.10.24"]
[EventType "swiss"]
[EventRounds "9"]
[EventCountry "FRA"]
[SourceTitle "CBM 169 Extra"]
[Source "ChessBase"]
[SourceDate "2015.12.18"]
[SourceVersion "1"]
[SourceVersionDate "2015.12.18"]
[SourceQuality "1"]
[TimeControl "40/5400+30:1800+30"]
[WhiteClock "0:14:20"]
[BlackClock "0:16:49"]

1. e4 {[%emt 0:00:00]} c5 {[%emt 0:00:00]} 2. Nc3 {[%emt 0:00:00]} g6 {[%emt 0:
00:12] Un ordre de coups qui évite l'attaque grand-prix jouée par le rennais}
(2... Nc6 3. f4 g6 4. Nf3 Bg7 5. Bb5 {Lejarre,L (2216)-Bollengier,T (2168)
FRA-chT2W 0203 2002 (6) 1-0}) 3. g3 {[%emt 0:02:24]} (3. f4 Bg7 4. Nf3 e6 5.
Bc4 Nc6 (5... Ne7 {[%cal Gd7d5]}) 6. O-O Nge7) 3... Bg7 {[%emt 0:00:08]} 4. Bg2
{[%emt 0:00:05]} Nc6 {[%emt 0:00:23]} 5. d3 {[%emt 0:00:07]} e5 {[%emt 0:01:31]
} (5... e6 {L'alternative}) 6. f4 {[%emt 0:01:35]} d6 {[%emt 0:03:18]} 7. Nh3 {
[%emt 0:08:41]} (7. Nf3 {La grande ligne}) 7... Nge7 {[%emt 0:09:43]} (7...
exf4) (7... h5 $5) 8. O-O {[%emt 0:01:17]} Nd4 {[%emt 0:00:05]} 9. Be3 {
[%emt 0:13:41]} (9. f5 $5 gxf5 10. Qh5) 9... O-O {[%emt 0:11:48]} 10. Qd2 {
[%emt 0:13:47]} Bg4 {[%emt 0:22:20]} (10... Bd7 11. Nd1 Qc8 12. Ndf2 Ndc6 13.
c3 b5 14. fxe5 Nxe5 15. Bh6 N7c6 16. Bxg7 Kxg7 17. Nf4 Qd8 18. Rad1 Rc8 19. Qe2
h5 20. d4 cxd4 21. cxd4 Ng4 22. h3 Nxf2 23. Qxf2 Ne7 24. Rd3 b4 25. Rf3 Qe8 26.
g4 hxg4 27. hxg4 Bb5 28. Re1 Qd8 29. g5 Qb6 30. Bh3 Rcd8 31. Be6 Be8 32. Nd5
Nxd5 33. Bxd5 {1-0 (33) Carlsen,M (2877)-Wojtaszek,R (2735) Tromso 2014}) (
10... Rb8 11. Rae1 $32 (11. Rf2 f6 {[%csl Gg5,Rh3]})) 11. Ng5 {[%emt 0:06:23]}
(11. Kh1 Qd7 12. Ng1) 11... f6 {[%emt 0:02:24]} 12. Nf3 {[%emt 0:06:45]} Qd7
$11 {[%emt 0:01:30]} 13. Rf2 {[%emt 0:01:49]} b5 {[%emt 0:03:41] Il est plus
facile pour les Noirs de progresser à l'aile-dame alors que l'attaque blanche
à l'aile-roi est bloquée} 14. Raf1 {[%emt 0:06:58]} b4 {[%emt 0:01:28]} 15.
Nd1 {[%emt 0:03:06]} Rab8 {[%emt 0:03:11]} (15... a5) 16. c3 {[%emt 0:03:52]}
Nxf3+ {[%emt 0:08:26]} 17. Bxf3 {[%emt 0:00:14]} Be6 {[%emt 0:00:28]} 18. c4 {
[%emt 0:10:13]} exf4 {[%emt 0:01:33]} (18... Nc6 {[%cal Gc6d4]}) 19. Bxf4 {
[%emt 0:01:10]} Nc6 {[%emt 0:00:17]} 20. Bg2 {[%emt 0:00:37]} Nd4 $15 {[%emt 0:
00:34]} 21. h4 {[%emt 0:01:44]} Rf7 {[%emt 0:05:19]} 22. Ne3 {[%emt 0:00:55]}
Rbf8 {[%emt 0:00:14]} 23. Nd5 {[%emt 0:01:13]} Bxd5 {[%emt 0:06:23]} 24. cxd5 {
[%emt 0:01:04]} f5 {[%emt 0:00:15]} 25. Bh3 1/2-1/2